[Event "Early-Titled-Tuesday-Blitz-July-09-2024"]
[Site "Chess.com"]
[Date "2024.07.09"]
[Round "2"]
[White "SashaKuzhilniy"]
[Black "elis06"]
[Result "0-1"]
[WhiteElo "2598"]
[BlackElo "2408"]
[TimeControl "180+1"]
[EndTime "8:17:32 PDT"]
[Termination "elis06 won on time"]

1. g3 {[%clk 0:03:00.9]} 1... d5 {[%clk 0:02:59.5]} 2. Bg2 {[%clk 0:03:01.8]}
2... Nf6 {[%clk 0:02:58]} 3. d3 {[%clk 0:03:02.1]} 3... g6 {[%clk 0:02:56.4]} 4.
Nf3 {[%clk 0:03:02.6]} 4... Bg7 {[%clk 0:02:56]} 5. O-O {[%clk 0:03:02.8]} 5...
O-O {[%clk 0:02:56.4]} 6. c4 {[%clk 0:03:02.8]} 6... c6 {[%clk 0:02:55]} 7. Na3
{[%clk 0:03:01.9]} 7... Re8 {[%clk 0:02:54.3]} 8. Qb3 {[%clk 0:03:01.3]} 8... e5
{[%clk 0:02:49.8]} 9. cxd5 {[%clk 0:02:54.4]} 9... cxd5 {[%clk 0:02:49.4]} 10.
d4 {[%clk 0:02:54.9]} 10... e4 {[%clk 0:02:47.2]} 11. Ne5 {[%clk 0:02:55.3]}
11... Nc6 {[%clk 0:02:38.6]} 12. Nxc6 {[%clk 0:02:49.5]} 12... bxc6 {[%clk
0:02:38.7]} 13. Bg5 {[%clk 0:02:44.8]} 13... Bd7 {[%clk 0:02:30.9]} 14. Rfc1
{[%clk 0:02:35.3]} 14... h6 {[%clk 0:02:29.5]} 15. Bxf6 {[%clk 0:02:35.2]} 15...
Qxf6 {[%clk 0:02:27.8]} 16. e3 {[%clk 0:02:36.1]} 16... Rab8 {[%clk 0:02:25.4]}
17. Qc3 {[%clk 0:02:32]} 17... Rec8 {[%clk 0:02:22.2]} 18. b4 {[%clk 0:02:24]}
18... Bf8 {[%clk 0:02:17.3]} 19. Nc2 {[%clk 0:02:23]} 19... Bd6 {[%clk 0:02:11]}
20. a3 {[%clk 0:02:19.8]} 20... h5 {[%clk 0:02:09.4]} 21. Ra2 {[%clk 0:01:52.8]}
21... h4 {[%clk 0:02:08.7]} 22. Na1 {[%clk 0:01:48.8]} 22... Kg7 {[%clk
0:02:06.3]} 23. Nb3 {[%clk 0:01:43.3]} 23... hxg3 {[%clk 0:02:03.1]} 24. fxg3
{[%clk 0:01:40.2]} 24... Rh8 {[%clk 0:01:59.3]} 25. Nc5 {[%clk 0:01:34.7]} 25...
Be8 {[%clk 0:01:49.7]} 26. Bxe4 {[%clk 0:01:11.6]} 26... dxe4 {[%clk 0:01:36.1]}
27. Nxe4 {[%clk 0:01:11.4]} 27... Qe7 {[%clk 0:01:34.2]} 28. Nxd6 {[%clk
0:01:11.6]} 28... Qxd6 {[%clk 0:01:33.3]} 29. d5+ {[%clk 0:01:12]} 29... f6
{[%clk 0:01:27.2]} 30. dxc6 {[%clk 0:01:12.3]} 30... Rc8 {[%clk 0:01:24.7]} 31.
b5 {[%clk 0:01:10.4]} 31... Bf7 {[%clk 0:01:22.9]} 32. Rd2 {[%clk 0:01:09.1]}
32... Qe6 {[%clk 0:01:20.6]} 33. a4 {[%clk 0:00:54.5]} 33... Qe4 {[%clk
0:01:06]} 34. Qd4 {[%clk 0:00:39.2]} 34... Qe6 {[%clk 0:00:58.5]} 35. Qxa7
{[%clk 0:00:20.3]} 35... Ra8 {[%clk 0:00:52.8]} 36. Qd4 {[%clk 0:00:20.7]} 36...
Rhd8 {[%clk 0:00:49.5]} 37. Qc3 {[%clk 0:00:20.1]} 37... Re8 {[%clk 0:00:41.7]}
38. c7 {[%clk 0:00:19.6]} 38... Rxa4 {[%clk 0:00:41.1]} 39. b6 {[%clk
0:00:11.3]} 39... Qxb6 {[%clk 0:00:39.8]} 40. Rf1 {[%clk 0:00:08.7]} 40... Rc8
{[%clk 0:00:34.5]} 41. Rd7 {[%clk 0:00:06.9]} 41... Qe6 {[%clk 0:00:27.9]} 42.
Rd8 {[%clk 0:00:04.1]} 42... Rc4 {[%clk 0:00:21.5]} 0-1

[Event "Early-Titled-Tuesday-Blitz-July-09-2024"]
[Site "Chess.com"]
[Date "2024.07.09"]
[Round "2"]
[White "woodpusher52"]
[Black "CristianS27"]
[Result "1-0"]
[WhiteElo "2755"]
[BlackElo "2517"]
[TimeControl "180+1"]
[EndTime "8:17:33 PDT"]
[Termination "woodpusher52 won on time"]

1. d4 {[%clk 0:03:00.9]} 1... Nf6 {[%clk 0:02:57.5]} 2. Nf3 {[%clk 0:02:58.9]}
2... g6 {[%clk 0:02:57.4]} 3. c4 {[%clk 0:02:58.4]} 3... Bg7 {[%clk 0:02:57.8]}
4. Nc3 {[%clk 0:02:58.6]} 4... O-O {[%clk 0:02:58.4]} 5. e4 {[%clk 0:02:58.5]}
5... d6 {[%clk 0:02:58.9]} 6. h3 {[%clk 0:02:58.8]} 6... c5 {[%clk 0:02:58.9]}
7. d5 {[%clk 0:02:56.6]} 7... e6 {[%clk 0:02:58.9]} 8. Nd2 {[%clk 0:02:48.2]}
8... exd5 {[%clk 0:02:56.3]} 9. cxd5 {[%clk 0:02:49.1]} 9... a6 {[%clk
0:02:48.8]} 10. a4 {[%clk 0:02:48.9]} 10... Nbd7 {[%clk 0:02:48.9]} 11. Be2
{[%clk 0:02:48.8]} 11... Re8 {[%clk 0:02:05]} 12. O-O {[%clk 0:02:47.6]} 12...
c4 {[%clk 0:01:59.2]} 13. Bxc4 {[%clk 0:02:37.2]} 13... Nc5 {[%clk 0:01:59.4]}
14. Re1 {[%clk 0:02:33.4]} 14... Qc7 {[%clk 0:01:54]} 15. Bf1 {[%clk 0:02:31.5]}
15... Bd7 {[%clk 0:01:42.5]} 16. Ra3 {[%clk 0:01:58.3]} 16... a5 {[%clk
0:01:36]} 17. Qf3 {[%clk 0:01:41.5]} 17... Qb6 {[%clk 0:01:24]} 18. Nc4 {[%clk
0:01:39.1]} 18... Qc7 {[%clk 0:01:20.1]} 19. Qf4 {[%clk 0:01:30.7]} 19... Ra6
{[%clk 0:01:03.1]} 20. Nb5 {[%clk 0:01:11.9]} 20... Qb8 {[%clk 0:00:45.2]} 21.
Ncxd6 {[%clk 0:01:03.8]} 21... Nh5 {[%clk 0:00:45.1]} 22. Qh2 {[%clk 0:00:59.9]}
22... Be5 {[%clk 0:00:41.8]} 23. f4 {[%clk 0:00:37.3]} 23... Bxd6 {[%clk
0:00:40.7]} 24. e5 {[%clk 0:00:37.8]} 24... Bf8 {[%clk 0:00:36.9]} 25. g4 {[%clk
0:00:38]} 25... Ng7 {[%clk 0:00:35]} 26. Be3 {[%clk 0:00:31.9]} 26... Ne4 {[%clk
0:00:20.5]} 27. Qc2 {[%clk 0:00:27.4]} 27... Bxa3 {[%clk 0:00:19.1]} 28. Nxa3
{[%clk 0:00:24.3]} 28... Ng3 {[%clk 0:00:16.8]} 29. Bxa6 {[%clk 0:00:23.3]}
29... bxa6 {[%clk 0:00:17.7]} 30. Bf2 {[%clk 0:00:19.5]} 30... N3f5 {[%clk
0:00:06.8]} 31. gxf5 {[%clk 0:00:18.5]} 31... Bxf5 {[%clk 0:00:07.7]} 32. Qc3
{[%clk 0:00:18.2]} 32... Nh5 {[%clk 0:00:05.9]} 33. Qd4 {[%clk 0:00:15.6]} 33...
Qb4 {[%clk 0:00:05.3]} 34. Nc4 {[%clk 0:00:14.2]} 34... Qxa4 {[%clk 0:00:03.8]}
35. d6 {[%clk 0:00:13.5]} 35... Qd7 {[%clk 0:00:03.3]} 36. Nb6 {[%clk
0:00:12.9]} 36... Qe6 {[%clk 0:00:03.6]} 37. Nd5 {[%clk 0:00:13.3]} 37... Bxh3
{[%clk 0:00:03.3]} 38. Kh2 {[%clk 0:00:10.8]} 38... Qg4 {[%clk 0:00:01.3]} 39.
Rg1 {[%clk 0:00:11.2]} 39... Qf3 {[%clk 0:00:01.8]} 40. Qe3 {[%clk 0:00:10.6]}
40... Qxe3 {[%clk 0:00:01.5]} 41. Bxe3 {[%clk 0:00:11.5]} 1-0

[Event "Early-Titled-Tuesday-Blitz-July-09-2024"]
[Site "Chess.com"]
[Date "2024.07.09"]
[Round "2"]
[White "ninguno46"]
[Black "Sawatdeekhrap"]
[Result "1-0"]
[WhiteElo "2559"]
[BlackElo "2756"]
[TimeControl "180+1"]
[EndTime "8:17:37 PDT"]
[Termination "ninguno46 won by resignation"]

1. Nf3 {[%clk 0:03:00.9]} 1... c5 {[%clk 0:02:59.1]} 2. c4 {[%clk 0:02:59.6]}
2... Nf6 {[%clk 0:02:57.2]} 3. e3 {[%clk 0:02:59.6]} 3... g6 {[%clk 0:02:55.8]}
4. Nc3 {[%clk 0:02:58.3]} 4... Bg7 {[%clk 0:02:56.2]} 5. d4 {[%clk 0:02:51.8]}
5... O-O {[%clk 0:02:56.5]} 6. Be2 {[%clk 0:02:50.4]} 6... cxd4 {[%clk
0:02:56.2]} 7. exd4 {[%clk 0:02:50.3]} 7... d5 {[%clk 0:02:56.7]} 8. c5 {[%clk
0:02:47.7]} 8... b6 {[%clk 0:02:55.1]} 9. cxb6 {[%clk 0:02:38.4]} 9... axb6
{[%clk 0:02:56]} 10. O-O {[%clk 0:02:38.5]} 10... Bg4 {[%clk 0:02:49.8]} 11. Ne5
{[%clk 0:02:25.4]} 11... Bxe2 {[%clk 0:02:48.8]} 12. Qxe2 {[%clk 0:02:26.3]}
12... Nfd7 {[%clk 0:02:31.2]} 13. Nf3 {[%clk 0:02:06.6]} 13... e6 {[%clk
0:02:27.9]} 14. h4 {[%clk 0:02:06.2]} 14... h5 {[%clk 0:02:26.1]} 15. Bg5 {[%clk
0:02:03.5]} 15... Bf6 {[%clk 0:02:25.9]} 16. Rac1 {[%clk 0:01:58.7]} 16... Re8
{[%clk 0:02:01.9]} 17. Rfe1 {[%clk 0:01:56.1]} 17... Bxg5 {[%clk 0:01:42.2]} 18.
hxg5 {[%clk 0:01:54.5]} 18... Nc6 {[%clk 0:00:59]} 19. Nb5 {[%clk 0:01:45.5]}
19... Ndb8 {[%clk 0:00:48.9]} 20. a3 {[%clk 0:01:42.3]} 20... Ra5 {[%clk
0:00:39.2]} 21. b4 {[%clk 0:01:38.7]} 21... Ra8 {[%clk 0:00:38.1]} 22. Rc3
{[%clk 0:01:23.3]} 22... Qd7 {[%clk 0:00:35.4]} 23. Rec1 {[%clk 0:01:18.4]}
23... Rd8 {[%clk 0:00:27.2]} 24. Ne5 {[%clk 0:01:03.2]} 24... Nxe5 {[%clk
0:00:23.4]} 25. dxe5 {[%clk 0:01:03.3]} 25... Na6 {[%clk 0:00:20.2]} 26. Nd6
{[%clk 0:01:01.2]} 26... Qe7 {[%clk 0:00:18.1]} 27. Qe3 {[%clk 0:00:45.8]} 27...
d4 {[%clk 0:00:14.5]} 28. Qxd4 {[%clk 0:00:40.8]} 28... Qxg5 {[%clk 0:00:15.1]}
29. Qe4 {[%clk 0:00:36.3]} 29... h4 {[%clk 0:00:12.2]} 30. R1c2 {[%clk
0:00:31.7]} 30... Rab8 {[%clk 0:00:07.1]} 31. Rf3 {[%clk 0:00:28.8]} 31... Rf8
{[%clk 0:00:07.2]} 32. Rh3 {[%clk 0:00:17.2]} 32... Rbd8 {[%clk 0:00:05]} 33.
Qxh4 {[%clk 0:00:16]} 33... Qxh4 {[%clk 0:00:04.4]} 34. Rxh4 {[%clk 0:00:16.3]}
34... Rd7 {[%clk 0:00:04.8]} 35. Rc3 {[%clk 0:00:13.9]} 35... f5 {[%clk
0:00:01.4]} 36. Rch3 {[%clk 0:00:13.6]} 36... g5 {[%clk 0:00:01.7]} 37. Rh8+
{[%clk 0:00:12.9]} 37... Kg7 {[%clk 0:00:02.4]} 38. R3h7+ {[%clk 0:00:13.1]}
38... Kg6 {[%clk 0:00:02.7]} 39. Rh6+ {[%clk 0:00:13.2]} 39... Kg7 {[%clk
0:00:03.1]} 40. R8h7+ {[%clk 0:00:13.6]} 40... Kg8 {[%clk 0:00:03.7]} 41. Rxd7
{[%clk 0:00:14.2]} 41... Rc8 {[%clk 0:00:03.6]} 42. Nxc8 {[%clk 0:00:13.4]} 1-0

[Event "Early-Titled-Tuesday-Blitz-July-09-2024"]
[Site "Chess.com"]
[Date "2024.07.09"]
[Round "2"]
[White "EpicWarrior2015"]
[Black "Akewjon"]
[Result "0-1"]
[WhiteElo "2457"]
[BlackElo "2745"]
[TimeControl "180+1"]
[EndTime "8:17:38 PDT"]
[Termination "Akewjon won by resignation"]

1. e4 {[%clk 0:03:00.9]} 1... c5 {[%clk 0:02:34.9]} 2. Nc3 {[%clk 0:03:00.8]}
2... d6 {[%clk 0:02:32.1]} 3. d3 {[%clk 0:03:00.9]} 3... g6 {[%clk 0:02:31.8]}
4. Be3 {[%clk 0:03:00.9]} 4... Bg7 {[%clk 0:02:31.9]} 5. g3 {[%clk 0:03:00.9]}
5... Nc6 {[%clk 0:02:31.8]} 6. Bg2 {[%clk 0:03:01]} 6... e6 {[%clk 0:02:32.4]}
7. f4 {[%clk 0:02:57]} 7... Nge7 {[%clk 0:02:29.9]} 8. Nf3 {[%clk 0:02:56.9]}
8... O-O {[%clk 0:02:28]} 9. O-O {[%clk 0:02:57]} 9... Nd4 {[%clk 0:02:27.8]}
10. Bf2 {[%clk 0:02:52.6]} 10... Rb8 {[%clk 0:02:27.9]} 11. Nxd4 {[%clk
0:02:51]} 11... cxd4 {[%clk 0:02:28.8]} 12. Ne2 {[%clk 0:02:51.4]} 12... e5
{[%clk 0:02:27.2]} 13. c3 {[%clk 0:02:27.2]} 13... dxc3 {[%clk 0:01:58.2]} 14.
bxc3 {[%clk 0:02:16.4]} 14... b6 {[%clk 0:01:55.7]} 15. Qd2 {[%clk 0:02:06.7]}
15... Bb7 {[%clk 0:01:45.3]} 16. d4 {[%clk 0:01:32.3]} 16... exf4 {[%clk
0:01:43]} 17. Nxf4 {[%clk 0:01:23.1]} 17... Rc8 {[%clk 0:01:31.9]} 18. Rfe1
{[%clk 0:00:56.2]} 18... Rc7 {[%clk 0:01:30.3]} 19. Rac1 {[%clk 0:00:45.1]}
19... Qd7 {[%clk 0:01:28.7]} 20. Nd3 {[%clk 0:00:29.2]} 20... Qa4 {[%clk
0:01:24.8]} 21. Qc2 {[%clk 0:00:22.2]} 21... Qd7 {[%clk 0:00:57.5]} 22. Qd2
{[%clk 0:00:16]} 22... Rfc8 {[%clk 0:00:57.4]} 23. Nf4 {[%clk 0:00:11]} 23...
Qa4 {[%clk 0:00:56.6]} 24. Re3 {[%clk 0:00:09.4]} 24... Bxd4 {[%clk 0:00:53.2]}
25. Rd3 {[%clk 0:00:07.1]} 25... Be5 {[%clk 0:00:32.8]} 26. Be3 {[%clk
0:00:06.5]} 26... Bxe4 {[%clk 0:00:32.4]} 27. Bxe4 {[%clk 0:00:06.5]} 27... Qxe4
{[%clk 0:00:33.3]} 28. Bf2 {[%clk 0:00:06.1]} 28... Nf5 {[%clk 0:00:28.9]} 29.
Rd5 {[%clk 0:00:04]} 29... Rxc3 {[%clk 0:00:26.5]} 30. Rxc3 {[%clk 0:00:04.1]}
30... Rxc3 {[%clk 0:00:27.1]} 31. Rd3 {[%clk 0:00:04.4]} 31... Rxd3 {[%clk
0:00:27]} 32. Qxd3 {[%clk 0:00:04.8]} 32... Qxd3 {[%clk 0:00:26.2]} 33. Nxd3
{[%clk 0:00:05.7]} 33... Kg7 {[%clk 0:00:24.2]} 34. Nxe5 {[%clk 0:00:05.7]}
34... dxe5 {[%clk 0:00:24.4]} 35. Kg2 {[%clk 0:00:06.2]} 35... Kf6 {[%clk
0:00:24.5]} 36. Kf3 {[%clk 0:00:06.7]} 36... Ke6 {[%clk 0:00:25.2]} 37. Ke4
{[%clk 0:00:07.2]} 37... Nd6+ {[%clk 0:00:25.9]} 38. Kd3 {[%clk 0:00:07]} 38...
Kd5 {[%clk 0:00:26.1]} 39. Be3 {[%clk 0:00:06.9]} 39... Nc4 {[%clk 0:00:26.4]}
40. Bc1 {[%clk 0:00:06.7]} 40... f5 {[%clk 0:00:26.6]} 41. h4 {[%clk 0:00:06.2]}
41... b5 {[%clk 0:00:27]} 42. a3 {[%clk 0:00:06]} 42... a5 {[%clk 0:00:27.3]}
43. Ke2 {[%clk 0:00:06.5]} 43... b4 {[%clk 0:00:27.6]} 44. axb4 {[%clk
0:00:06.9]} 44... axb4 {[%clk 0:00:28.3]} 45. Kd3 {[%clk 0:00:06.4]} 45... e4+
{[%clk 0:00:28.6]} 46. Kc2 {[%clk 0:00:06.3]} 46... Kd4 {[%clk 0:00:27.8]} 47.
Bf4 {[%clk 0:00:06.5]} 47... e3 {[%clk 0:00:27.5]} 48. Bh6 {[%clk 0:00:06.4]}
48... e2 {[%clk 0:00:28]} 49. Bg7+ {[%clk 0:00:06.6]} 49... Ke4 {[%clk 0:00:28]}
0-1

[Event "Early-Titled-Tuesday-Blitz-July-09-2024"]
[Site "Chess.com"]
[Date "2024.07.09"]
[Round "2"]
[White "prosequi"]
[Black "tgpgoat"]
[Result "0-1"]
[WhiteElo "2325"]
[BlackElo "2528"]
[TimeControl "180+1"]
[EndTime "8:17:38 PDT"]
[Termination "tgpgoat won by resignation"]

1. e4 {[%clk 0:03:00.9]} 1... c5 {[%clk 0:02:59.5]} 2. Nc3 {[%clk 0:03:01]} 2...
e6 {[%clk 0:02:59.3]} 3. Nge2 {[%clk 0:03:01.1]} 3... Nc6 {[%clk 0:02:59.2]} 4.
g3 {[%clk 0:03:00.9]} 4... Qc7 {[%clk 0:02:58.4]} 5. Bg2 {[%clk 0:03:00.8]} 5...
a6 {[%clk 0:02:58.4]} 6. O-O {[%clk 0:03:00.8]} 6... Nf6 {[%clk 0:02:58.6]} 7.
f4 {[%clk 0:03:00.5]} 7... d6 {[%clk 0:02:57.8]} 8. h3 {[%clk 0:02:59.5]} 8...
Be7 {[%clk 0:02:57.5]} 9. g4 {[%clk 0:02:59.8]} 9... O-O {[%clk 0:02:58]} 10. d3
{[%clk 0:02:59.6]} 10... b5 {[%clk 0:02:57.7]} 11. Ng3 {[%clk 0:02:55.8]} 11...
Bb7 {[%clk 0:02:58.2]} 12. g5 {[%clk 0:02:55.7]} 12... Nd7 {[%clk 0:02:57.9]}
13. f5 {[%clk 0:02:56]} 13... Kh8 {[%clk 0:02:54.3]} 14. Qh5 {[%clk 0:02:35.3]}
14... Nce5 {[%clk 0:02:52.7]} 15. Bf4 {[%clk 0:02:22.9]} 15... Rg8 {[%clk
0:02:44.4]} 16. Qe2 {[%clk 0:02:17.3]} 16... Qb6 {[%clk 0:02:35.7]} 17. Kh1
{[%clk 0:02:16.2]} 17... b4 {[%clk 0:02:34.7]} 18. Nd1 {[%clk 0:02:16.4]} 18...
Nc6 {[%clk 0:02:31.9]} 19. g6 {[%clk 0:01:53]} 19... fxg6 {[%clk 0:02:07.2]} 20.
fxg6 {[%clk 0:01:53.2]} 20... hxg6 {[%clk 0:02:06.4]} 21. Qg4 {[%clk 0:01:51.1]}
21... Nf8 {[%clk 0:02:02.4]} 22. Bg5 {[%clk 0:01:43.7]} 22... Bxg5 {[%clk
0:01:57.1]} 23. Qxg5 {[%clk 0:01:44.6]} 23... Qd8 {[%clk 0:01:56.4]} 24. Qg4
{[%clk 0:01:40.3]} 24... Ne5 {[%clk 0:01:55.9]} 25. Qe2 {[%clk 0:01:34]} 25...
Qg5 {[%clk 0:01:54.5]} 26. Kh2 {[%clk 0:01:34.2]} 26... Nh7 {[%clk 0:01:51]} 27.
Ne3 {[%clk 0:01:24.4]} 27... Nf6 {[%clk 0:01:50.1]} 28. c3 {[%clk 0:01:11.3]}
28... Qxe3 {[%clk 0:01:46.5]} 29. Qxe3 {[%clk 0:01:05.8]} 29... Nfg4+ {[%clk
0:01:45.5]} 30. hxg4 {[%clk 0:01:05.9]} 30... Nxg4+ {[%clk 0:01:46.4]} 31. Kh3
{[%clk 0:01:05.7]} 31... Nxe3 {[%clk 0:01:46.6]} 32. Rh1 {[%clk 0:01:05.8]}
32... Rgf8 {[%clk 0:01:40.2]} 33. Ne2 {[%clk 0:01:01.9]} 33... Nxg2 {[%clk
0:01:37.2]} 34. Kxg2+ {[%clk 0:01:02]} 34... Kg8 {[%clk 0:01:38.1]} 35. Kg3
{[%clk 0:00:58]} 35... bxc3 {[%clk 0:01:36.5]} 36. bxc3 {[%clk 0:00:58]} 36...
e5 {[%clk 0:01:30.4]} 37. Rab1 {[%clk 0:00:52.2]} 37... Rab8 {[%clk 0:01:30.5]}
38. Rb6 {[%clk 0:00:52.1]} 38... Bxe4 {[%clk 0:01:26.2]} 39. Rxb8 {[%clk
0:00:43.7]} 39... Bxh1 {[%clk 0:01:26]} 40. Rb6 {[%clk 0:00:44.4]} 40... Rf3+
{[%clk 0:01:20.8]} 41. Kh2 {[%clk 0:00:38.4]} 41... Rf2+ {[%clk 0:01:20.8]} 42.
Kxh1 {[%clk 0:00:38.7]} 42... Rxe2 {[%clk 0:01:20.8]} 43. Rxd6 {[%clk
0:00:39.1]} 43... Rxa2 {[%clk 0:01:20.1]} 44. Rxg6 {[%clk 0:00:39.3]} 44... Rd2
{[%clk 0:01:16.8]} 45. Rxa6 {[%clk 0:00:37.7]} 45... Rxd3 {[%clk 0:01:16]} 46.
Re6 {[%clk 0:00:36.3]} 46... Rxc3 {[%clk 0:01:13.4]} 47. Rxe5 {[%clk 0:00:36.4]}
47... Rc2 {[%clk 0:01:13.9]} 48. Re8+ {[%clk 0:00:35.5]} 48... Kh7 {[%clk
0:01:13.6]} 49. Rc8 {[%clk 0:00:36.4]} 49... c4 {[%clk 0:01:13.6]} 50. Kg1
{[%clk 0:00:35.9]} 50... g5 {[%clk 0:01:13.4]} 51. Rc6 {[%clk 0:00:35.9]} 51...
g4 {[%clk 0:01:12]} 52. Kf1 {[%clk 0:00:31.8]} 52... c3 {[%clk 0:01:10.3]} 53.
Ke1 {[%clk 0:00:29.9]} 53... g3 {[%clk 0:01:10.3]} 54. Kd1 {[%clk 0:00:28.7]}
54... Ra2 {[%clk 0:00:55.8]} 55. Rxc3 {[%clk 0:00:06.3]} 55... g2 {[%clk
0:00:56.1]} 56. Rh3+ {[%clk 0:00:06.5]} 56... Kg6 {[%clk 0:00:54.4]} 57. Rg3+
{[%clk 0:00:07.4]} 57... Kh5 {[%clk 0:00:54.5]} 58. Ke1 {[%clk 0:00:08.3]} 58...
Kh4 {[%clk 0:00:54.8]} 59. Rg8 {[%clk 0:00:08.5]} 59... Kh3 {[%clk 0:00:51.6]}
60. Rh8+ {[%clk 0:00:08.8]} 60... Kg3 {[%clk 0:00:51.9]} 61. Rg8+ {[%clk
0:00:09]} 61... Kh2 {[%clk 0:00:52.4]} 62. Rh8+ {[%clk 0:00:09.7]} 62... Kg1
{[%clk 0:00:52.7]} 63. Rg8 {[%clk 0:00:09.9]} 63... Ra7 {[%clk 0:00:51.3]} 64.
Ke2 {[%clk 0:00:09.6]} 64... Re7+ {[%clk 0:00:51.2]} 65. Kf3 {[%clk 0:00:09.8]}
65... Kf1 {[%clk 0:00:50.5]} 0-1

[Event "Early-Titled-Tuesday-Blitz-July-09-2024"]
[Site "Chess.com"]
[Date "2024.07.09"]
[Round "2"]
[White "Bauman_Guy"]
[Black "Dmitry_Ponomarev"]
[Result "1-0"]
[WhiteElo "2958"]
[BlackElo "2529"]
[TimeControl "180+1"]
[EndTime "8:17:39 PDT"]
[Termination "Bauman_Guy won by checkmate"]

1. e4 {[%clk 0:03:00.9]} 1... c6 {[%clk 0:02:59.4]} 2. Ne2 {[%clk 0:03:01]} 2...
d5 {[%clk 0:03:00.2]} 3. exd5 {[%clk 0:02:58.4]} 3... cxd5 {[%clk 0:03:01.1]} 4.
d4 {[%clk 0:02:58.2]} 4... Nf6 {[%clk 0:03:01.6]} 5. c3 {[%clk 0:02:57.8]} 5...
Nc6 {[%clk 0:03:02.1]} 6. Bf4 {[%clk 0:02:57.7]} 6... Bf5 {[%clk 0:03:02.4]} 7.
Nd2 {[%clk 0:02:57.9]} 7... h6 {[%clk 0:03:02.5]} 8. Ng3 {[%clk 0:02:58.1]} 8...
Bh7 {[%clk 0:03:01.8]} 9. Be2 {[%clk 0:02:58.6]} 9... e6 {[%clk 0:03:02.4]} 10.
O-O {[%clk 0:02:58.9]} 10... Bd6 {[%clk 0:03:03]} 11. Bxd6 {[%clk 0:02:59.1]}
11... Qxd6 {[%clk 0:03:03.9]} 12. Qb3 {[%clk 0:02:59.3]} 12... O-O {[%clk
0:03:01.1]} 13. Rae1 {[%clk 0:02:58.1]} 13... a6 {[%clk 0:02:59.2]} 14. f4
{[%clk 0:02:54.5]} 14... b5 {[%clk 0:02:58.5]} 15. a3 {[%clk 0:02:54.7]} 15...
Rfc8 {[%clk 0:02:51.6]} 16. Kh1 {[%clk 0:02:50.7]} 16... Rab8 {[%clk 0:02:45.7]}
17. Nh5 {[%clk 0:02:32]} 17... Nxh5 {[%clk 0:02:36.6]} 18. Bxh5 {[%clk
0:02:32.9]} 18... a5 {[%clk 0:02:32.4]} 19. Nf3 {[%clk 0:02:31.8]} 19... b4
{[%clk 0:02:31.5]} 20. Ne5 {[%clk 0:02:26.2]} 20... Rc7 {[%clk 0:02:06.9]} 21.
axb4 {[%clk 0:02:01.4]} 21... axb4 {[%clk 0:02:05.2]} 22. Qa4 {[%clk 0:02:01.7]}
22... Nxe5 {[%clk 0:02:02.5]} 23. fxe5 {[%clk 0:02:01.5]} 23... Qb6 {[%clk
0:01:54.5]} 24. Re3 {[%clk 0:01:36.2]} 24... bxc3 {[%clk 0:01:44.3]} 25. bxc3
{[%clk 0:01:36.3]} 25... Qb5 {[%clk 0:01:36.1]} 26. Qd1 {[%clk 0:01:30.4]} 26...
Bf5 {[%clk 0:00:51.7]} 27. h3 {[%clk 0:01:24.9]} 27... Qb1 {[%clk 0:00:42.8]}
28. Qf3 {[%clk 0:01:20.1]} 28... Qa2 {[%clk 0:00:34.9]} 29. Kh2 {[%clk
0:01:06.4]} 29... Rb1 {[%clk 0:00:31.5]} 30. Rxb1 {[%clk 0:00:59.9]} 30... Qxb1
{[%clk 0:00:32.4]} 31. Qg3 {[%clk 0:00:58.1]} 31... Qc1 {[%clk 0:00:24.6]} 32.
Be2 {[%clk 0:00:51.4]} 32... Rb7 {[%clk 0:00:18.7]} 33. c4 {[%clk 0:00:46.7]}
33... Rb1 {[%clk 0:00:18.2]} 34. Qf2 {[%clk 0:00:47.1]} 34... Qh1+ {[%clk
0:00:17.6]} 35. Kg3 {[%clk 0:00:47.5]} 35... dxc4 {[%clk 0:00:16.9]} 36. Bxc4
{[%clk 0:00:34.7]} 36... Qc1 {[%clk 0:00:15.9]} 37. Bd3 {[%clk 0:00:21.1]} 37...
Rb2 {[%clk 0:00:15.2]} 38. Qf3 {[%clk 0:00:19.9]} 38... Bxd3 {[%clk 0:00:15.3]}
39. Rxd3 {[%clk 0:00:20.2]} 39... Qe1+ {[%clk 0:00:15.4]} 40. Kh2 {[%clk
0:00:20.8]} 40... Qg1+ {[%clk 0:00:11.1]} 41. Kg3 {[%clk 0:00:19.8]} 41... Qe1+
{[%clk 0:00:12]} 42. Kh2 {[%clk 0:00:18]} 42... Qg1+ {[%clk 0:00:12.1]} 43. Kxg1
{[%clk 0:00:18.1]} 43... Rb1+ {[%clk 0:00:10.2]} 44. Kh2 {[%clk 0:00:16.8]}
44... Rb2 {[%clk 0:00:11.1]} 45. d5 {[%clk 0:00:16.7]} 45... exd5 {[%clk
0:00:11.7]} 46. Rxd5 {[%clk 0:00:16.9]} 46... Rb8 {[%clk 0:00:12.6]} 47. Rd7
{[%clk 0:00:16.6]} 47... Rf8 {[%clk 0:00:13.5]} 48. e6 {[%clk 0:00:17.1]} 48...
fxe6 {[%clk 0:00:13.2]} 49. Qg4 {[%clk 0:00:17.7]} 49... Rf7 {[%clk 0:00:12.6]}
50. Qxe6 {[%clk 0:00:17.7]} 50... Kh7 {[%clk 0:00:13.1]} 51. Qxf7 {[%clk
0:00:18.6]} 51... Kh8 {[%clk 0:00:14]} 52. Qxg7# {[%clk 0:00:19.4]} 1-0